[Event "Late-Titled-Tuesday-Blitz-January-30-2024"]
[Site "Chess.com"]
[Date "2024.01.30"]
[Round "5"]
[White "Gryffindorac8"]
[Black "JaackCamel"]
[Result "0-1"]
[WhiteElo "2392"]
[BlackElo "2164"]
[TimeControl "180+1"]
[EndTime "14:55:27 PST"]
[Termination "JaackCamel won by checkmate"]

1. d4 {[%clk 0:03:00.9]} 1... d5 {[%clk 0:02:58.5]} 2. c4 {[%clk 0:03:01.1]}
2... e6 {[%clk 0:02:58.3]} 3. Nf3 {[%clk 0:03:01.4]} 3... c6 {[%clk 0:02:58.3]}
4. g3 {[%clk 0:03:01.2]} 4... dxc4 {[%clk 0:02:58]} 5. Bg2 {[%clk 0:03:01.2]}
5... b5 {[%clk 0:02:58.2]} 6. O-O {[%clk 0:03:00.3]} 6... Bb7 {[%clk 0:02:58]}
7. Ne5 {[%clk 0:03:00.5]} 7... Qc8 {[%clk 0:02:51.2]} 8. b3 {[%clk 0:02:51.2]}
8... cxb3 {[%clk 0:02:49]} 9. Qxb3 {[%clk 0:02:52.1]} 9... Nd7 {[%clk
0:02:46.5]} 10. Nc3 {[%clk 0:02:27.7]} 10... Ngf6 {[%clk 0:02:43]} 11. a4 {[%clk
0:02:05.2]} 11... b4 {[%clk 0:02:42.6]} 12. Ne4 {[%clk 0:02:01.8]} 12... Nxe4
{[%clk 0:02:36.4]} 13. Bxe4 {[%clk 0:02:02.7]} 13... c5 {[%clk 0:02:29]} 14.
Bxb7 {[%clk 0:01:56.6]} 14... Qxb7 {[%clk 0:02:27.4]} 15. Nxd7 {[%clk
0:01:54.1]} 15... Qxd7 {[%clk 0:02:26]} 16. Rd1 {[%clk 0:01:43.8]} 16... Qb7
{[%clk 0:02:07]} 17. Bb2 {[%clk 0:01:28.1]} 17... Be7 {[%clk 0:02:02.2]} 18.
dxc5 {[%clk 0:01:27.5]} 18... O-O {[%clk 0:02:02.1]} 19. Rac1 {[%clk 0:01:23.2]}
19... Rfc8 {[%clk 0:01:56.1]} 20. Qc4 {[%clk 0:01:13.3]} 20... Bxc5 {[%clk
0:01:31.9]} 21. Qg4 {[%clk 0:00:32.5]} 21... Bf8 {[%clk 0:01:20.3]} 22. a5
{[%clk 0:00:31.9]} 22... Rxc1 {[%clk 0:01:08.6]} 23. Rxc1 {[%clk 0:00:29]} 23...
Rd8 {[%clk 0:01:07]} 24. Qc4 {[%clk 0:00:13.8]} 24... Rd2 {[%clk 0:01:01.2]} 25.
Rc2 {[%clk 0:00:09.4]} 25... Rd1# {[%clk 0:01:00.5]} 0-1

[Event "Late-Titled-Tuesday-Blitz-January-30-2024"]
[Site "Chess.com"]
[Date "2024.01.30"]
[Round "5"]
[White "pooh2012"]
[Black "Iball95"]
[Result "1-0"]
[WhiteElo "2507"]
[BlackElo "2774"]
[TimeControl "180+1"]
[EndTime "14:55:28 PST"]
[Termination "pooh2012 won by checkmate"]

1. Nf3 {[%clk 0:03:00.9]} 1... d5 {[%clk 0:02:59.4]} 2. g3 {[%clk 0:03:00.3]}
2... Nf6 {[%clk 0:02:59.7]} 3. Bg2 {[%clk 0:03:00.8]} 3... c5 {[%clk 0:03:00.4]}
4. c4 {[%clk 0:03:00.1]} 4... e6 {[%clk 0:03:00.3]} 5. cxd5 {[%clk 0:02:59.2]}
5... exd5 {[%clk 0:03:01.2]} 6. O-O {[%clk 0:02:59]} 6... Nc6 {[%clk 0:03:01.7]}
7. d4 {[%clk 0:02:58.5]} 7... Be7 {[%clk 0:03:02.3]} 8. dxc5 {[%clk 0:02:56.6]}
8... Bxc5 {[%clk 0:03:03.2]} 9. Nc3 {[%clk 0:02:54.2]} 9... O-O {[%clk
0:03:03.3]} 10. Bg5 {[%clk 0:02:52.5]} 10... d4 {[%clk 0:03:03.5]} 11. Bxf6
{[%clk 0:02:47.5]} 11... Qxf6 {[%clk 0:03:04.4]} 12. Ne4 {[%clk 0:02:47.2]}
12... Qe7 {[%clk 0:03:04.5]} 13. Nxc5 {[%clk 0:02:46.7]} 13... Qxc5 {[%clk
0:03:04.5]} 14. Rc1 {[%clk 0:02:40.5]} 14... Qb6 {[%clk 0:03:04.7]} 15. Qd2
{[%clk 0:02:36.2]} 15... Be6 {[%clk 0:03:04.7]} 16. a3 {[%clk 0:02:00.7]} 16...
a5 {[%clk 0:02:51.7]} 17. Ng5 {[%clk 0:01:52.7]} 17... Bf5 {[%clk 0:02:39.9]}
18. Ne4 {[%clk 0:01:48.3]} 18... Rfe8 {[%clk 0:02:10.5]} 19. Nd6 {[%clk
0:01:36.2]} 19... Re5 {[%clk 0:02:06.8]} 20. Nc4 {[%clk 0:01:17.5]} 20... Qb5
{[%clk 0:02:03.6]} 21. Nxe5 {[%clk 0:00:56.9]} 21... Qxe5 {[%clk 0:02:03.1]} 22.
Bxc6 {[%clk 0:00:54.4]} 22... bxc6 {[%clk 0:02:04]} 23. Rxc6 {[%clk 0:00:54.3]}
23... h5 {[%clk 0:01:57.2]} 24. Rfc1 {[%clk 0:00:38.2]} 24... Bh3 {[%clk
0:01:55]} 25. R6c5 {[%clk 0:00:34.1]} 25... Qe4 {[%clk 0:01:51.6]} 26. f3 {[%clk
0:00:34]} 26... Qg6 {[%clk 0:01:51.6]} 27. Qxd4 {[%clk 0:00:31.6]} 27... Re8
{[%clk 0:01:49.2]} 28. Qh4 {[%clk 0:00:31]} 28... Qe6 {[%clk 0:01:47.7]} 29. e4
{[%clk 0:00:24]} 29... Qd7 {[%clk 0:01:43.8]} 30. Rxh5 {[%clk 0:00:19.9]} 30...
f6 {[%clk 0:01:31.1]} 31. Rh8+ {[%clk 0:00:17.7]} 31... Kf7 {[%clk 0:01:31.6]}
32. Qh5+ {[%clk 0:00:16.9]} 32... g6 {[%clk 0:01:31]} 33. Rh7+ {[%clk 0:00:12]}
33... Ke6 {[%clk 0:01:31]} 34. Qxh3+ {[%clk 0:00:11.7]} 34... Ke5 {[%clk
0:01:31.5]} 35. Rxd7 {[%clk 0:00:11.6]} 35... a4 {[%clk 0:01:32.4]} 36. Rd5#
{[%clk 0:00:11.6]} 1-0

[Event "Late-Titled-Tuesday-Blitz-January-30-2024"]
[Site "Chess.com"]
[Date "2024.01.30"]
[Round "5"]
[White "Nemsko"]
[Black "Meri-Arabidze"]
[Result "0-1"]
[WhiteElo "2383"]
[BlackElo "2753"]
[TimeControl "180+1"]
[EndTime "14:55:32 PST"]
[Termination "Meri-Arabidze won by resignation"]

1. e4 {[%clk 0:03:00.9]} 1... c5 {[%clk 0:02:58.1]} 2. Nf3 {[%clk 0:03:01]} 2...
e6 {[%clk 0:02:57.9]} 3. d4 {[%clk 0:03:01.7]} 3... cxd4 {[%clk 0:02:58.7]} 4.
Nxd4 {[%clk 0:03:02.6]} 4... Nc6 {[%clk 0:02:59]} 5. Nc3 {[%clk 0:03:02.8]} 5...
a6 {[%clk 0:02:59.5]} 6. Be3 {[%clk 0:03:00.1]} 6... Qc7 {[%clk 0:02:59]} 7. Bd3
{[%clk 0:02:56.3]} 7... Nf6 {[%clk 0:02:58.5]} 8. Qd2 {[%clk 0:02:52.2]} 8... b5
{[%clk 0:02:57.1]} 9. O-O-O {[%clk 0:02:40]} 9... Bb7 {[%clk 0:02:47.2]} 10. f3
{[%clk 0:02:33.7]} 10... Bb4 {[%clk 0:02:44.3]} 11. a3 {[%clk 0:02:05.8]} 11...
Be7 {[%clk 0:02:43.9]} 12. Na2 {[%clk 0:01:57]} 12... O-O {[%clk 0:02:41.8]} 13.
Kb1 {[%clk 0:01:56.9]} 13... Ne5 {[%clk 0:02:38.8]} 14. g4 {[%clk 0:01:53.9]}
14... d5 {[%clk 0:02:28.2]} 15. g5 {[%clk 0:01:52.4]} 15... Nfd7 {[%clk
0:02:27.4]} 16. exd5 {[%clk 0:01:42.5]} 16... Bxd5 {[%clk 0:02:21]} 17. Rhf1
{[%clk 0:01:31.1]} 17... Nb6 {[%clk 0:02:18.5]} 18. Bf4 {[%clk 0:01:21.9]} 18...
Bd6 {[%clk 0:02:13.6]} 19. Bxe5 {[%clk 0:01:06.5]} 19... Bxe5 {[%clk 0:02:13.7]}
20. Be4 {[%clk 0:01:03.6]} 20... Bxe4 {[%clk 0:02:01.8]} 21. fxe4 {[%clk
0:01:03.6]} 21... Nc4 {[%clk 0:02:01]} 22. Qf2 {[%clk 0:00:54.7]} 22... a5
{[%clk 0:01:55.2]} 23. Nxb5 {[%clk 0:00:24.4]} 23... Qb7 {[%clk 0:01:54.8]} 24.
a4 {[%clk 0:00:20.6]} 24... Nxb2 {[%clk 0:01:52.9]} 25. Qc5 {[%clk 0:00:21.2]}
25... Nxd1 {[%clk 0:01:46.9]} 26. Qxe5 {[%clk 0:00:19.7]} 26... Ne3 {[%clk
0:01:44.3]} 27. Rf3 {[%clk 0:00:19.5]} 27... Nc4 {[%clk 0:01:42.2]} 28. Qd4
{[%clk 0:00:18.4]} 28... Qxe4 {[%clk 0:01:40.4]} 29. Qxe4 {[%clk 0:00:16.8]}
29... Nd2+ {[%clk 0:01:40.5]} 30. Kb2 {[%clk 0:00:16.4]} 30... Nxe4 {[%clk
0:01:41.4]} 31. h4 {[%clk 0:00:16.4]} 31... f6 {[%clk 0:01:38.3]} 32. gxf6
{[%clk 0:00:16]} 32... Rxf6 {[%clk 0:01:35.8]} 33. Re3 {[%clk 0:00:16.3]} 33...
Rf4 {[%clk 0:01:34.9]} 34. Nc7 {[%clk 0:00:14.4]} 34... Rb8+ {[%clk 0:01:33.5]}
35. Ka3 {[%clk 0:00:15]} 35... Nc5 {[%clk 0:01:30.3]} 36. Nc3 {[%clk 0:00:13.6]}
36... Kf7 {[%clk 0:01:23.5]} 37. Nxe6 {[%clk 0:00:13]} 37... Nxe6 {[%clk
0:01:21.8]} 0-1

[Event "Late-Titled-Tuesday-Blitz-January-30-2024"]
[Site "Chess.com"]
[Date "2024.01.30"]
[Round "5"]
[White "Alexander_Donchenko"]
[Black "lachesisQ"]
[Result "0-1"]
[WhiteElo "2930"]
[BlackElo "3112"]
[TimeControl "180+1"]
[EndTime "14:55:40 PST"]
[Termination "lachesisQ won by resignation"]

1. Nf3 {[%clk 0:03:00.9]} 1... c5 {[%clk 0:02:59.4]} 2. c4 {[%clk 0:03:00.5]}
2... g6 {[%clk 0:02:58.6]} 3. d4 {[%clk 0:03:00.2]} 3... cxd4 {[%clk 0:02:58.6]}
4. Nxd4 {[%clk 0:03:01.1]} 4... Bg7 {[%clk 0:02:58.7]} 5. e4 {[%clk 0:03:01.7]}
5... Qa5+ {[%clk 0:02:57.7]} 6. Nc3 {[%clk 0:03:00]} 6... Nc6 {[%clk 0:02:57.5]}
7. Be3 {[%clk 0:02:59.5]} 7... Nf6 {[%clk 0:02:57.1]} 8. Nb3 {[%clk 0:02:55.2]}
8... Qc7 {[%clk 0:02:56]} 9. Be2 {[%clk 0:02:53.3]} 9... O-O {[%clk 0:02:55.1]}
10. O-O {[%clk 0:02:53]} 10... d6 {[%clk 0:02:54.7]} 11. Rc1 {[%clk 0:02:48.7]}
11... Be6 {[%clk 0:02:51.6]} 12. h3 {[%clk 0:02:46.1]} 12... Rfc8 {[%clk
0:02:51.3]} 13. Qd2 {[%clk 0:02:39]} 13... Qd8 {[%clk 0:02:45.5]} 14. f4 {[%clk
0:02:15]} 14... Na5 {[%clk 0:02:28.3]} 15. e5 {[%clk 0:02:06.3]} 15... Ne8
{[%clk 0:02:15.6]} 16. Nd5 {[%clk 0:01:29.6]} 16... Nxb3 {[%clk 0:02:08]} 17.
axb3 {[%clk 0:01:30.5]} 17... dxe5 {[%clk 0:02:08.4]} 18. fxe5 {[%clk
0:01:25.8]} 18... Bxd5 {[%clk 0:02:04.7]} 19. cxd5 {[%clk 0:01:23.9]} 19... Rxc1
{[%clk 0:02:02.9]} 20. Qxc1 {[%clk 0:01:21.2]} 20... Bxe5 {[%clk 0:02:02.1]} 21.
Qc4 {[%clk 0:01:09.6]} 21... Nd6 {[%clk 0:01:56.2]} 22. Qd3 {[%clk 0:00:58.6]}
22... Rc8 {[%clk 0:01:53]} 23. Bg4 {[%clk 0:00:55.6]} 23... f5 {[%clk
0:01:49.6]} 24. Bd1 {[%clk 0:00:50.4]} 24... Qa5 {[%clk 0:01:45.4]} 25. g4
{[%clk 0:00:45]} 25... Bxb2 {[%clk 0:01:43.5]} 26. Bg5 {[%clk 0:00:35.8]} 26...
Bf6 {[%clk 0:01:40.6]} 27. Bf4 {[%clk 0:00:32]} 27... Qc3 {[%clk 0:01:38.9]} 28.
Qxc3 {[%clk 0:00:30.6]} 28... Rxc3 {[%clk 0:01:38.3]} 29. Bxd6 {[%clk
0:00:30.6]} 29... exd6 {[%clk 0:01:36.3]} 30. gxf5 {[%clk 0:00:31.5]} 30... g5
{[%clk 0:01:31.3]} 31. Rf3 {[%clk 0:00:31.8]} 31... Rc1 {[%clk 0:01:29.6]} 32.
Rd3 {[%clk 0:00:32.5]} 32... Kg7 {[%clk 0:01:29.2]} 33. Kg2 {[%clk 0:00:32.9]}
33... Be5 {[%clk 0:01:28.9]} 34. Bg4 {[%clk 0:00:31.9]} 34... a5 {[%clk
0:01:28.1]} 35. Re3 {[%clk 0:00:31.4]} 35... Kf6 {[%clk 0:01:27.8]} 36. Rd3
{[%clk 0:00:26.4]} 36... b5 {[%clk 0:01:27.7]} 37. Re3 {[%clk 0:00:26]} 37...
Rc2+ {[%clk 0:01:22.3]} 38. Kf3 {[%clk 0:00:25]} 38... a4 {[%clk 0:01:20.5]} 39.
bxa4 {[%clk 0:00:24.4]} 39... bxa4 {[%clk 0:01:21.4]} 40. Ke4 {[%clk 0:00:19.3]}
40... Rc4+ {[%clk 0:01:19.4]} 41. Kf3 {[%clk 0:00:17.6]} 41... Rc3 {[%clk
0:01:19.5]} 42. Rxc3 {[%clk 0:00:15.1]} 42... Bxc3 {[%clk 0:01:20.4]} 0-1

[Event "Late-Titled-Tuesday-Blitz-January-30-2024"]
[Site "Chess.com"]
[Date "2024.01.30"]
[Round "5"]
[White "GlavkonVVS"]
[Black "platy3"]
[Result "0-1"]
[WhiteElo "2577"]
[BlackElo "2864"]
[TimeControl "180+1"]
[EndTime "14:55:46 PST"]
[Termination "platy3 won on time"]

1. c4 {[%clk 0:03:00.9]} 1... e5 {[%clk 0:02:59.6]} 2. Nc3 {[%clk 0:03:01]} 2...
Nf6 {[%clk 0:02:59.5]} 3. g3 {[%clk 0:03:01.6]} 3... Bb4 {[%clk 0:02:58.8]} 4.
Bg2 {[%clk 0:03:01.9]} 4... O-O {[%clk 0:02:59.4]} 5. Nh3 {[%clk 0:02:57.6]}
5... c6 {[%clk 0:02:58.8]} 6. O-O {[%clk 0:02:55.8]} 6... Bxc3 {[%clk
0:02:53.5]} 7. bxc3 {[%clk 0:02:55.6]} 7... d6 {[%clk 0:02:52.6]} 8. d3 {[%clk
0:02:54.6]} 8... h6 {[%clk 0:02:52.3]} 9. f4 {[%clk 0:02:52.8]} 9... Nbd7 {[%clk
0:02:44.4]} 10. e4 {[%clk 0:02:48.1]} 10... Re8 {[%clk 0:02:40.6]} 11. Rb1
{[%clk 0:02:43.5]} 11... a6 {[%clk 0:02:38.9]} 12. f5 {[%clk 0:02:26.5]} 12...
b5 {[%clk 0:02:33.8]} 13. g4 {[%clk 0:02:19.2]} 13... bxc4 {[%clk 0:02:32.7]}
14. dxc4 {[%clk 0:02:18.4]} 14... Nc5 {[%clk 0:02:29.3]} 15. g5 {[%clk
0:02:12.4]} 15... Nfxe4 {[%clk 0:02:22.8]} 16. gxh6 {[%clk 0:02:09.7]} 16... Qh4
{[%clk 0:02:19.1]} 17. Rb6 {[%clk 0:01:49.9]} 17... gxh6 {[%clk 0:02:04.6]} 18.
Rxc6 {[%clk 0:01:22.4]} 18... Kh8 {[%clk 0:01:54.9]} 19. Rxd6 {[%clk 0:01:10.3]}
19... Nxd6 {[%clk 0:01:51.7]} 20. Qxd6 {[%clk 0:01:10.4]} 20... Rg8 {[%clk
0:01:36.3]} 21. Bxh6 {[%clk 0:00:14]} 21... Bb7 {[%clk 0:01:28.6]} 22. Ng5
{[%clk 0:00:13.8]} 22... Ne4 {[%clk 0:01:03.8]} 23. Qe7 {[%clk 0:00:04.1]} 23...
Nxg5 {[%clk 0:00:48.5]} 0-1

[Event "Late-Titled-Tuesday-Blitz-January-30-2024"]
[Site "Chess.com"]
[Date "2024.01.30"]
[Round "5"]
[White "SHIVACalypso"]
[Black "GMBenjaminBok"]
[Result "0-1"]
[WhiteElo "2482"]
[BlackElo "2939"]
[TimeControl "180+1"]
[EndTime "14:55:48 PST"]
[Termination "GMBenjaminBok won by resignation"]

1. Nf3 {[%clk 0:03:00.9]} 1... Nf6 {[%clk 0:02:59.4]} 2. c4 {[%clk 0:03:01.5]}
2... e6 {[%clk 0:02:59.1]} 3. g3 {[%clk 0:03:02.1]} 3... d5 {[%clk 0:02:58.9]}
4. Bg2 {[%clk 0:03:02.8]} 4... Be7 {[%clk 0:02:54.1]} 5. O-O {[%clk 0:03:02.6]}
5... O-O {[%clk 0:02:54.7]} 6. d4 {[%clk 0:03:02.9]} 6... dxc4 {[%clk 0:02:55]}
7. Qc2 {[%clk 0:03:01.8]} 7... a6 {[%clk 0:02:55.5]} 8. a4 {[%clk 0:02:58.9]}
8... Bd7 {[%clk 0:02:55.7]} 9. Ne5 {[%clk 0:02:59.5]} 9... Nc6 {[%clk
0:02:46.8]} 10. Qxc4 {[%clk 0:02:58.8]} 10... Nxe5 {[%clk 0:02:40.6]} 11. dxe5
{[%clk 0:02:59.7]} 11... Nd5 {[%clk 0:02:41.2]} 12. Nc3 {[%clk 0:02:59.3]} 12...
Bc6 {[%clk 0:02:31.4]} 13. Rd1 {[%clk 0:02:46.4]} 13... Qc8 {[%clk 0:01:58.4]}
14. Nxd5 {[%clk 0:02:39.8]} 14... exd5 {[%clk 0:01:59.3]} 15. Bxd5 {[%clk
0:02:36.4]} 15... Bxd5 {[%clk 0:01:57.7]} 16. Rxd5 {[%clk 0:02:34.6]} 16... Qe6
{[%clk 0:01:57.6]} 17. Bf4 {[%clk 0:02:30.3]} 17... Rad8 {[%clk 0:01:49.7]} 18.
Rd4 {[%clk 0:02:28.2]} 18... Rxd4 {[%clk 0:01:43]} 19. Qxd4 {[%clk 0:02:28.1]}
19... Rd8 {[%clk 0:01:42.9]} 20. Qc3 {[%clk 0:02:27.8]} 20... c6 {[%clk
0:01:38.4]} 21. h4 {[%clk 0:02:27.4]} 21... h6 {[%clk 0:01:38.1]} 22. a5 {[%clk
0:02:20.1]} 22... g5 {[%clk 0:01:30.1]} 23. hxg5 {[%clk 0:02:18.8]} 23... hxg5
{[%clk 0:01:31]} 24. Be3 {[%clk 0:02:13.4]} 24... Rd5 {[%clk 0:01:28.9]} 25. Qb3
{[%clk 0:01:47.3]} 25... Rxa5 {[%clk 0:01:03.5]} 26. Qd1 {[%clk 0:01:31.2]}
26... Rxa1 {[%clk 0:01:03.9]} 27. Qxa1 {[%clk 0:01:32.1]} 27... Qxe5 {[%clk
0:01:04.5]} 28. Qc1 {[%clk 0:01:26.2]} 28... Bf6 {[%clk 0:00:57.3]} 29. b3
{[%clk 0:01:15]} 29... Kg7 {[%clk 0:00:53.5]} 30. Qc4 {[%clk 0:01:09]} 30... Qd5
{[%clk 0:00:45.9]} 31. Qb4 {[%clk 0:01:07.9]} 31... b5 {[%clk 0:00:40.4]} 32. f3
{[%clk 0:00:48.9]} 32... a5 {[%clk 0:00:38.5]} 33. Qxa5 {[%clk 0:00:40.9]} 33...
Qxb3 {[%clk 0:00:38.5]} 34. Qc7 {[%clk 0:00:41.3]} 34... Qxe3+ {[%clk 0:00:38]}
35. Kf1 {[%clk 0:00:38.7]} 35... Bd4 {[%clk 0:00:34.8]} 0-1

[Event "Late-Titled-Tuesday-Blitz-January-30-2024"]
[Site "Chess.com"]
[Date "2024.01.30"]
[Round "5"]
[White "TheAlienParty"]
[Black "protectiago"]
[Result "1-0"]
[WhiteElo "2382"]
[BlackElo "2067"]
[TimeControl "180+1"]
[EndTime "14:55:49 PST"]
[Termination "TheAlienParty won on time"]

1. c4 {[%clk 0:02:52.6]} 1... c5 {[%clk 0:02:58.2]} 2. Nf3 {[%clk 0:02:51.3]}
2... Nc6 {[%clk 0:02:57.2]} 3. d4 {[%clk 0:02:50.7]} 3... cxd4 {[%clk
0:02:51.9]} 4. Nxd4 {[%clk 0:02:50.6]} 4... g6 {[%clk 0:02:51]} 5. g3 {[%clk
0:02:47.8]} 5... Bg7 {[%clk 0:02:51.1]} 6. Nc2 {[%clk 0:02:47.3]} 6... Nf6
{[%clk 0:02:33.7]} 7. Nc3 {[%clk 0:02:46.1]} 7... O-O {[%clk 0:02:33]} 8. Bg2
{[%clk 0:02:45.5]} 8... d6 {[%clk 0:02:29.5]} 9. O-O {[%clk 0:02:44.4]} 9... Be6
{[%clk 0:02:22]} 10. b3 {[%clk 0:02:43.4]} 10... Qd7 {[%clk 0:01:41.1]} 11. Bb2
{[%clk 0:02:37.4]} 11... Bh3 {[%clk 0:01:36.8]} 12. Qd2 {[%clk 0:02:35.3]} 12...
Bxg2 {[%clk 0:01:33.8]} 13. Kxg2 {[%clk 0:02:34.7]} 13... a6 {[%clk 0:01:23.2]}
14. Ne3 {[%clk 0:02:32.6]} 14... b5 {[%clk 0:01:08.3]} 15. Rfd1 {[%clk
0:02:18.6]} 15... bxc4 {[%clk 0:01:06.2]} 16. Nxc4 {[%clk 0:02:16.9]} 16... Qb7
{[%clk 0:01:01.4]} 17. Kg1 {[%clk 0:02:14.3]} 17... Rfc8 {[%clk 0:00:52.1]} 18.
Na4 {[%clk 0:02:09.3]} 18... Rab8 {[%clk 0:00:46.7]} 19. Rac1 {[%clk 0:02:07]}
19... Qa7 {[%clk 0:00:41.6]} 20. Qe3 {[%clk 0:01:53.2]} 20... Qxe3 {[%clk
0:00:32.2]} 21. Nxe3 {[%clk 0:01:52.4]} 21... Nb4 {[%clk 0:00:25]} 22. a3 {[%clk
0:01:46]} 22... Nc6 {[%clk 0:00:17.7]} 23. Nc4 {[%clk 0:01:28.1]} 23... Rxb3
{[%clk 0:00:16.6]} 24. Na5 {[%clk 0:01:28]} 24... Rxb2 {[%clk 0:00:12.1]} 25.
Nxc6 {[%clk 0:01:21.5]} 25... Rb7 {[%clk 0:00:10.6]} 26. Nxe7+ {[%clk
0:01:20.9]} 26... Rxe7 {[%clk 0:00:08.7]} 27. Rxc8+ {[%clk 0:01:20.9]} 27... Bf8
{[%clk 0:00:07.1]} 28. e3 {[%clk 0:01:20.6]} 28... d5 {[%clk 0:00:05.3]} 29. Nb6
{[%clk 0:01:19.3]} 29... Rb7 {[%clk 0:00:05.2]} 30. Nxd5 {[%clk 0:01:18]} 30...
Nxd5 {[%clk 0:00:04.9]} 31. Rxd5 {[%clk 0:01:17.6]} 31... Kg7 {[%clk 0:00:04.8]}
32. Ra5 {[%clk 0:01:15.2]} 32... Rb1+ {[%clk 0:00:02.7]} 33. Kg2 {[%clk
0:01:14.5]} 33... Rb6 {[%clk 0:00:02.1]} 34. Ra8 {[%clk 0:01:12]} 1-0

[Event "Late-Titled-Tuesday-Blitz-January-30-2024"]
[Site "Chess.com"]
[Date "2024.01.30"]
[Round "5"]
[White "rikchessmx"]
[Black "RantomOpening"]
[Result "0-1"]
[WhiteElo "2320"]
[BlackElo "2531"]
[TimeControl "180+1"]
[EndTime "14:55:50 PST"]
[Termination "RantomOpening won by checkmate"]

1. e4 {[%clk 0:02:52]} 1... c5 {[%clk 0:02:59.9]} 2. Nf3 {[%clk 0:02:51.5]} 2...
e6 {[%clk 0:03:00.2]} 3. d4 {[%clk 0:02:52]} 3... cxd4 {[%clk 0:03:00.7]} 4.
Nxd4 {[%clk 0:02:52.9]} 4... Nf6 {[%clk 0:03:01.1]} 5. Bd3 {[%clk 0:02:52]} 5...
Nc6 {[%clk 0:02:58.3]} 6. Nxc6 {[%clk 0:02:50.9]} 6... bxc6 {[%clk 0:02:59.2]}
7. O-O {[%clk 0:02:50.2]} 7... d5 {[%clk 0:02:59.6]} 8. Nc3 {[%clk 0:02:49.5]}
8... Be7 {[%clk 0:02:59.5]} 9. Qe2 {[%clk 0:02:44.5]} 9... O-O {[%clk
0:02:59.5]} 10. b3 {[%clk 0:02:36.7]} 10... Nd7 {[%clk 0:02:58.9]} 11. Na4
{[%clk 0:02:33.9]} 11... Nb6 {[%clk 0:02:57.6]} 12. Nb2 {[%clk 0:02:31.6]} 12...
Nd7 {[%clk 0:02:56.5]} 13. c4 {[%clk 0:02:30.9]} 13... Nc5 {[%clk 0:02:54.6]}
14. Bb1 {[%clk 0:02:25.6]} 14... dxe4 {[%clk 0:02:52.5]} 15. b4 {[%clk
0:02:15.7]} 15... Nd3 {[%clk 0:02:52]} 16. Nxd3 {[%clk 0:02:14]} 16... exd3
{[%clk 0:02:51.8]} 17. Bxd3 {[%clk 0:02:12.1]} 17... g6 {[%clk 0:02:40]} 18. Bb2
{[%clk 0:02:06.7]} 18... Bf6 {[%clk 0:02:38.2]} 19. Bxf6 {[%clk 0:02:03.4]}
19... Qxf6 {[%clk 0:02:39.1]} 20. a4 {[%clk 0:01:58.1]} 20... e5 {[%clk
0:02:38.6]} 21. Rfe1 {[%clk 0:01:54.5]} 21... Re8 {[%clk 0:02:36.6]} 22. c5
{[%clk 0:01:52.4]} 22... e4 {[%clk 0:02:28.4]} 23. Bc4 {[%clk 0:01:49]} 23...
Bf5 {[%clk 0:02:04.1]} 24. Rac1 {[%clk 0:01:34.8]} 24... Kg7 {[%clk 0:01:55.4]}
25. b5 {[%clk 0:01:32.2]} 25... Re5 {[%clk 0:01:55]} 26. Ba2 {[%clk 0:01:27.1]}
26... Rc8 {[%clk 0:01:48.4]} 27. b6 {[%clk 0:01:25]} 27... axb6 {[%clk
0:01:46.1]} 28. cxb6 {[%clk 0:01:25.1]} 28... Rb8 {[%clk 0:01:41.6]} 29. Rb1
{[%clk 0:01:21.8]} 29... Ra5 {[%clk 0:01:39.8]} 30. Qc2 {[%clk 0:01:10.2]} 30...
Ra6 {[%clk 0:01:28.7]} 31. Qc5 {[%clk 0:01:01.9]} 31... e3 {[%clk 0:01:23.5]}
32. Rb4 {[%clk 0:00:45]} 32... exf2+ {[%clk 0:01:23.1]} 33. Qxf2 {[%clk
0:00:45.1]} 33... c5 {[%clk 0:01:19.4]} 34. Qxc5 {[%clk 0:00:37.8]} 34... Raxb6
{[%clk 0:01:19.6]} 35. Rxb6 {[%clk 0:00:37.1]} 35... Rxb6 {[%clk 0:01:20.2]} 36.
a5 {[%clk 0:00:34.5]} 36... Rb2 {[%clk 0:01:20.3]} 37. Bc4 {[%clk 0:00:20.5]}
37... Be4 {[%clk 0:01:15.8]} 38. Rxe4 {[%clk 0:00:15.4]} 38... Rb1+ {[%clk
0:01:15.8]} 39. Re1 {[%clk 0:00:09.3]} 39... Rxe1+ {[%clk 0:01:15.7]} 40. Bf1
{[%clk 0:00:08.5]} 40... Qxf1# {[%clk 0:01:16.6]} 0-1